[Event "*** Titled Tuesday Blitz"]
[Site "Chess.com"]
[Date "2021.04.27"]
[Round "2"]
[White "ferch1ni"]
[Black "Coiote53"]
[Result "1-0"]
[WhiteElo "2363"]
[BlackElo "2027"]
[TimeControl "180+1"]
[EndTime "10:17:57 PDT"]
[Termination "ferch1ni won by resignation"]

1. e4 {[%clk 0:03:00.9]} 1... c5 {[%clk 0:02:59.6]} 2. Nf3 {[%clk 0:03:00.7]}
2... d6 {[%clk 0:02:59.7]} 3. d4 {[%clk 0:02:53.1]} 3... cxd4 {[%clk 0:03:00.6]}
4. Nxd4 {[%clk 0:02:53.4]} 4... Nf6 {[%clk 0:02:59.5]} 5. Nc3 {[%clk 0:02:51.1]}
5... a6 {[%clk 0:02:59.9]} 6. Be2 {[%clk 0:02:50]} 6... e5 {[%clk 0:02:59.5]} 7.
Nb3 {[%clk 0:02:48.9]} 7... Be7 {[%clk 0:02:59.5]} 8. O-O {[%clk 0:02:47.9]}
8... O-O {[%clk 0:02:59]} 9. Kh1 {[%clk 0:02:46.6]} 9... b6 {[%clk 0:02:56.1]}
10. f4 {[%clk 0:02:44.7]} 10... Bb7 {[%clk 0:02:41.1]} 11. Bf3 {[%clk
0:02:43.5]} 11... Nbd7 {[%clk 0:02:35.9]} 12. Nd5 {[%clk 0:02:41.1]} 12... Bxd5
{[%clk 0:02:25.7]} 13. exd5 {[%clk 0:02:39.5]} 13... e4 {[%clk 0:02:26]} 14. Be2
{[%clk 0:02:33.9]} 14... b5 {[%clk 0:02:26.3]} 15. a4 {[%clk 0:02:28.4]} 15...
Nb6 {[%clk 0:02:24]} 16. axb5 {[%clk 0:02:27.6]} 16... axb5 {[%clk 0:02:24.9]}
17. Rxa8 {[%clk 0:02:27.7]} 17... Qxa8 {[%clk 0:02:25.8]} 18. Bxb5 {[%clk
0:02:27.8]} 18... Nfxd5 {[%clk 0:02:16.8]} 19. Nd4 {[%clk 0:02:22]} 19... Bf6
{[%clk 0:02:14.1]} 20. c4 {[%clk 0:01:54]} 20... Nb4 {[%clk 0:02:11.4]} 21. Nf5
{[%clk 0:01:44.2]} 21... Nd3 {[%clk 0:02:04.1]} 22. Be3 {[%clk 0:01:33.6]} 22...
Qa5 {[%clk 0:01:55.1]} 23. b3 {[%clk 0:01:29.2]} 23... Rd8 {[%clk 0:01:48.8]}
24. Qg4 {[%clk 0:01:06.2]} 24... g6 {[%clk 0:01:43.1]} 25. Ng3 {[%clk
0:00:58.9]} 25... d5 {[%clk 0:01:40.6]} 26. f5 {[%clk 0:00:43.5]} 26... dxc4
{[%clk 0:01:35.9]} 27. bxc4 {[%clk 0:00:35.9]} 27... Ne5 {[%clk 0:01:27.4]} 28.
Qxe4 {[%clk 0:00:34.6]} 28... g5 {[%clk 0:01:10.8]} 29. Nh5 {[%clk 0:00:28.7]}
29... Bh8 {[%clk 0:01:09.9]} 30. Bxg5 {[%clk 0:00:24.2]} 30... Rd3 {[%clk
0:01:03.4]} 31. Nf6+ {[%clk 0:00:19.4]} 31... Bxf6 {[%clk 0:01:02.6]} 32. Bxf6
{[%clk 0:00:20.3]} 32... Qd2 {[%clk 0:00:23.3]} 33. Qxe5 {[%clk 0:00:13.3]} 1-0

[Event "*** Titled Tuesday Blitz"]
[Site "Chess.com"]
[Date "2021.04.27"]
[Round "2"]
[White "Andreikka"]
[Black "Ibrayevnb"]
[Result "1-0"]
[WhiteElo "2874"]
[BlackElo "2461"]
[TimeControl "180+1"]
[EndTime "10:17:58 PDT"]
[Termination "Andreikka won by checkmate"]

1. c4 {[%clk 0:03:00.9]} 1... e5 {[%clk 0:02:59.6]} 2. g3 {[%clk 0:03:00.9]}
2... Nf6 {[%clk 0:02:58.1]} 3. Bg2 {[%clk 0:03:01]} 3... d5 {[%clk 0:02:55.8]}
4. cxd5 {[%clk 0:03:00.5]} 4... Nxd5 {[%clk 0:02:56.3]} 5. Nc3 {[%clk
0:02:58.6]} 5... Nb6 {[%clk 0:02:56.4]} 6. d3 {[%clk 0:02:57.6]} 6... Be7 {[%clk
0:02:55.1]} 7. Nf3 {[%clk 0:02:58.1]} 7... Nc6 {[%clk 0:02:54.8]} 8. O-O {[%clk
0:02:58.7]} 8... O-O {[%clk 0:02:54.5]} 9. a3 {[%clk 0:02:59.6]} 9... Be6 {[%clk
0:02:51.8]} 10. b4 {[%clk 0:02:58.2]} 10... f6 {[%clk 0:02:51.9]} 11. Bb2 {[%clk
0:02:56.2]} 11... Kh8 {[%clk 0:02:50.9]} 12. Rc1 {[%clk 0:02:55.2]} 12... a5
{[%clk 0:02:34.6]} 13. b5 {[%clk 0:02:54.2]} 13... Nd4 {[%clk 0:02:34.6]} 14.
Nd2 {[%clk 0:02:54]} 14... Ra7 {[%clk 0:02:28.5]} 15. e3 {[%clk 0:02:52.8]}
15... Nf5 {[%clk 0:02:27.8]} 16. Nde4 {[%clk 0:02:53]} 16... a4 {[%clk
0:02:21.6]} 17. Qe2 {[%clk 0:02:37.4]} 17... Qd7 {[%clk 0:02:17.6]} 18. f4
{[%clk 0:02:30.8]} 18... exf4 {[%clk 0:02:13.4]} 19. Rxf4 {[%clk 0:02:29.1]}
19... Rd8 {[%clk 0:02:07.9]} 20. Rd1 {[%clk 0:02:15.7]} 20... Bb3 {[%clk
0:02:07.1]} 21. Rd2 {[%clk 0:02:14.4]} 21... Nd5 {[%clk 0:01:54.8]} 22. Nxd5
{[%clk 0:02:11.7]} 22... Bxd5 {[%clk 0:01:54.6]} 23. Bh3 {[%clk 0:02:02.4]}
23... Be6 {[%clk 0:01:53.5]} 24. Qh5 {[%clk 0:01:58.5]} 24... Nxe3 {[%clk
0:00:57.6]} 25. Rh4 {[%clk 0:01:55.5]} 25... Bf5 {[%clk 0:00:57.3]} 26. Rf2
{[%clk 0:01:19.5]} 26... h6 {[%clk 0:00:42.7]} 27. Bxf5 {[%clk 0:01:15.2]} 27...
Nxf5 {[%clk 0:00:42.2]} 28. Qxf5 {[%clk 0:01:14.4]} 28... Qxd3 {[%clk 0:00:42]}
29. Kg2 {[%clk 0:01:13.3]} 29... Ra5 {[%clk 0:00:31.4]} 30. Qg6 {[%clk
0:01:07.8]} 30... Rxb5 {[%clk 0:00:30.9]} 31. Rxh6+ {[%clk 0:00:41.2]} 31...
gxh6 {[%clk 0:00:30.5]} 32. Qxh6+ {[%clk 0:00:42.1]} 32... Kg8 {[%clk
0:00:30.4]} 33. Qg6+ {[%clk 0:00:43]} 33... Kh8 {[%clk 0:00:24.8]} 34. Bxf6+
{[%clk 0:00:43.9]} 34... Bxf6 {[%clk 0:00:24.6]} 35. Qh6+ {[%clk 0:00:36.9]}
35... Kg8 {[%clk 0:00:22.3]} 36. Nxf6+ {[%clk 0:00:37.8]} 36... Kf7 {[%clk
0:00:22.1]} 37. Nd5+ {[%clk 0:00:33.8]} 37... Kg8 {[%clk 0:00:16.2]} 38. Ne7#
{[%clk 0:00:33.4]} 1-0

[Event "*** Titled Tuesday Blitz"]
[Site "Chess.com"]
[Date "2021.04.27"]
[Round "2"]
[White "Grieve72"]
[Black "MarcoRiehle"]
[Result "0-1"]
[WhiteElo "2490"]
[BlackElo "2708"]
[TimeControl "180+1"]
[EndTime "10:17:59 PDT"]
[Termination "MarcoRiehle won by resignation"]

1. d4 {[%clk 0:03:00.9]} 1... d5 {[%clk 0:02:57.6]} 2. Bg5 {[%clk 0:03:01.1]}
2... f6 {[%clk 0:02:50.7]} 3. Bh4 {[%clk 0:02:58.6]} 3... c5 {[%clk 0:02:49.9]}
4. dxc5 {[%clk 0:02:58.6]} 4... e5 {[%clk 0:02:48.8]} 5. e4 {[%clk 0:02:55.3]}
5... d4 {[%clk 0:02:47]} 6. f4 {[%clk 0:02:55.3]} 6... Qa5+ {[%clk 0:02:42.8]}
7. c3 {[%clk 0:02:46.8]} 7... Nc6 {[%clk 0:02:28.3]} 8. Nf3 {[%clk 0:02:24.1]}
8... Bg4 {[%clk 0:02:21.6]} 9. b4 {[%clk 0:02:08.9]} 9... Qc7 {[%clk 0:02:11.8]}
10. a3 {[%clk 0:02:08.9]} 10... O-O-O {[%clk 0:02:09]} 11. Qb3 {[%clk
0:01:30.4]} 11... exf4 {[%clk 0:02:00.8]} 12. Bc4 {[%clk 0:01:23.7]} 12... Bxf3
{[%clk 0:01:49.3]} 13. gxf3 {[%clk 0:01:12.9]} 13... Ne5 {[%clk 0:01:45.7]} 14.
O-O {[%clk 0:00:59.3]} 14... Ne7 {[%clk 0:01:23.8]} 15. Be6+ {[%clk 0:00:59.2]}
15... Kb8 {[%clk 0:01:23.4]} 16. Nd2 {[%clk 0:00:44.9]} 16... dxc3 {[%clk
0:01:11.7]} 17. Qxc3 {[%clk 0:00:45.8]} 17... g5 {[%clk 0:01:07.9]} 18. Bf2
{[%clk 0:00:31.5]} 18... Rd3 {[%clk 0:01:01.2]} 19. Qc1 {[%clk 0:00:24.7]} 19...
Rxd2 {[%clk 0:01:00.5]} 20. Be1 {[%clk 0:00:16.7]} 20... Rd3 {[%clk 0:00:58.5]}
21. Kg2 {[%clk 0:00:15]} 21... h5 {[%clk 0:00:50]} 22. Bc3 {[%clk 0:00:08]}
22... Bh6 {[%clk 0:00:48.3]} 23. Qc2 {[%clk 0:00:06.9]} 23... Rhd8 {[%clk
0:00:44.9]} 24. Bd5 {[%clk 0:00:03.4]} 24... Nxd5 {[%clk 0:00:43]} 25. exd5
{[%clk 0:00:04]} 25... R8xd5 {[%clk 0:00:41.7]} 26. Rae1 {[%clk 0:00:04.3]}
26... a6 {[%clk 0:00:37.9]} 27. Re2 {[%clk 0:00:04]} 27... g4 {[%clk 0:00:37.6]}
28. Kh1 {[%clk 0:00:04.6]} 28... gxf3 {[%clk 0:00:36.4]} 29. Ref2 {[%clk
0:00:04.9]} 29... Qc6 {[%clk 0:00:32.8]} 30. Bb2 {[%clk 0:00:03.2]} 30... Ng4
{[%clk 0:00:31.9]} 31. Rxf3 {[%clk 0:00:02.5]} 31... Rxf3 {[%clk 0:00:32.1]} 32.
Rxf3 {[%clk 0:00:03.4]} 32... Rd1+ {[%clk 0:00:32]} 33. Qxd1 {[%clk 0:00:03.6]}
33... Nf2+ {[%clk 0:00:32.4]} 34. Kg1 {[%clk 0:00:02.9]} 34... Nxd1 {[%clk
0:00:32.6]} 0-1

[Event "*** Titled Tuesday Blitz"]
[Site "Chess.com"]
[Date "2021.04.27"]
[Round "2"]
[White "Leo_C"]
[Black "chessmachine14"]
[Result "1-0"]
[WhiteElo "2465"]
[BlackElo "2266"]
[TimeControl "180+1"]
[EndTime "10:17:59 PDT"]
[Termination "Leo_C won by resignation"]

1. d4 {[%clk 0:03:00.9]} 1... g6 {[%clk 0:02:51.9]} 2. c4 {[%clk 0:02:59.2]}
2... Bg7 {[%clk 0:02:51.8]} 3. Nc3 {[%clk 0:02:58.9]} 3... e6 {[%clk 0:02:52.2]}
4. e4 {[%clk 0:02:55.9]} 4... Ne7 {[%clk 0:02:52.3]} 5. g3 {[%clk 0:02:55.3]}
5... O-O {[%clk 0:02:52]} 6. Bg2 {[%clk 0:02:54.5]} 6... d5 {[%clk 0:02:25.7]}
7. cxd5 {[%clk 0:02:50.7]} 7... exd5 {[%clk 0:02:25.3]} 8. exd5 {[%clk
0:02:51.1]} 8... c6 {[%clk 0:02:21.7]} 9. dxc6 {[%clk 0:02:47.7]} 9... Nexc6
{[%clk 0:01:43.8]} 10. d5 {[%clk 0:02:42.8]} 10... Nd4 {[%clk 0:01:17.8]} 11.
Be3 {[%clk 0:02:36.9]} 11... Re8 {[%clk 0:01:11.1]} 12. Nge2 {[%clk 0:02:35.5]}
12... Nf5 {[%clk 0:01:01.3]} 13. Bd2 {[%clk 0:02:16.8]} 13... Nd4 {[%clk
0:00:52.2]} 14. O-O {[%clk 0:02:11.1]} 14... Bg4 {[%clk 0:00:51.2]} 15. f3
{[%clk 0:02:09.2]} 15... Nxe2+ {[%clk 0:00:44.2]} 16. Nxe2 {[%clk 0:02:08.5]}
16... Bf5 {[%clk 0:00:44.2]} 17. Bc3 {[%clk 0:02:03.7]} 17... Bxc3 {[%clk
0:00:20.8]} 18. bxc3 {[%clk 0:01:50]} 18... Qb6+ {[%clk 0:00:20]} 19. Nd4 {[%clk
0:01:49]} 19... Nd7 {[%clk 0:00:19.6]} 20. Kh1 {[%clk 0:01:47.2]} 20... Nc5
{[%clk 0:00:19.4]} 21. Nxf5 {[%clk 0:01:46.3]} 21... gxf5 {[%clk 0:00:18.6]} 22.
Qd4 {[%clk 0:01:46.1]} 22... Qd6 {[%clk 0:00:15]} 23. Rfe1 {[%clk 0:01:43.2]}
23... b6 {[%clk 0:00:12.3]} 24. Bh3 {[%clk 0:01:38.3]} 24... Rad8 {[%clk
0:00:11.3]} 25. Bxf5 {[%clk 0:01:36.2]} 25... Rxe1+ {[%clk 0:00:10.9]} 26. Rxe1
{[%clk 0:01:35.9]} 26... Qxd5 {[%clk 0:00:11.3]} 27. Re8+ {[%clk 0:01:35.1]}
27... Rxe8 {[%clk 0:00:06.5]} 28. Qxd5 {[%clk 0:01:34.9]} 28... Re1+ {[%clk
0:00:06.4]} 29. Kg2 {[%clk 0:01:34.8]} 29... Re2+ {[%clk 0:00:06.9]} 30. Kh3
{[%clk 0:01:35]} 30... Ne6 {[%clk 0:00:06.9]} 31. Bxe6 {[%clk 0:01:33.2]} 31...
Rxe6 {[%clk 0:00:06.9]} 32. Qa8+ {[%clk 0:01:31.7]} 32... Kg7 {[%clk 0:00:05.6]}
33. Qxa7 {[%clk 0:01:31.9]} 33... h6 {[%clk 0:00:05.2]} 34. c4 {[%clk
0:01:30.5]} 34... Rc6 {[%clk 0:00:05.3]} 35. Qa6 {[%clk 0:01:30]} 35... Rd6
{[%clk 0:00:04.4]} 36. Qb5 {[%clk 0:01:29.8]} 36... Re6 {[%clk 0:00:04]} 37. a4
{[%clk 0:01:29.3]} 37... Rf6 {[%clk 0:00:03.6]} 38. c5 {[%clk 0:01:28.5]} 38...
bxc5 {[%clk 0:00:03.4]} 39. Qxc5 {[%clk 0:01:28.6]} 39... Rxf3 {[%clk
0:00:03.6]} 40. a5 {[%clk 0:01:27.1]} 40... Rf6 {[%clk 0:00:02.2]} 41. Qd4
{[%clk 0:01:26.7]} 41... Kg6 {[%clk 0:00:01.9]} 42. Qxf6+ {[%clk 0:01:26.8]}
42... Kxf6 {[%clk 0:00:01.6]} 43. a6 {[%clk 0:01:27.7]} 43... Kg5 {[%clk
0:00:02]} 44. a7 {[%clk 0:01:27.3]} 44... f5 {[%clk 0:00:02.9]} 45. a8=Q {[%clk
0:01:26.6]} 45... f4 {[%clk 0:00:03.8]} 46. Qd8+ {[%clk 0:01:25.9]} 46... Kh5
{[%clk 0:00:03.9]} 47. g4+ {[%clk 0:01:23.8]} 47... Kg6 {[%clk 0:00:03.2]} 48.
Qd6+ {[%clk 0:01:23.8]} 48... Kf7 {[%clk 0:00:03.3]} 49. Qxf4+ {[%clk
0:01:23.4]} 49... Kg6 {[%clk 0:00:03.9]} 50. Kh4 {[%clk 0:01:22.7]} 50... Kg7
{[%clk 0:00:04.8]} 51. Kh5 {[%clk 0:01:22.7]} 51... Kh7 {[%clk 0:00:05.6]} 52.
Qf7+ {[%clk 0:01:22]} 52... Kh8 {[%clk 0:00:05.7]} 53. Kg6 {[%clk 0:01:22.1]}
1-0

[Event "*** Titled Tuesday Blitz"]
[Site "Chess.com"]
[Date "2021.04.27"]
[Round "2"]
[White "kobemagic"]
[Black "GregShahade"]
[Result "0-1"]
[WhiteElo "2367"]
[BlackElo "2666"]
[TimeControl "180+1"]
[EndTime "10:18:01 PDT"]
[Termination "GregShahade won by resignation"]

1. c4 {[%clk 0:03:00.9]} 1... Nf6 {[%clk 0:02:59.2]} 2. g3 {[%clk 0:03:01.2]}
2... d5 {[%clk 0:02:56.6]} 3. Bg2 {[%clk 0:03:01.3]} 3... g6 {[%clk 0:02:55.5]}
4. Nf3 {[%clk 0:03:00.3]} 4... Bg7 {[%clk 0:02:55]} 5. O-O {[%clk 0:03:00.8]}
5... O-O {[%clk 0:02:53]} 6. cxd5 {[%clk 0:02:59.9]} 6... Nxd5 {[%clk
0:02:52.6]} 7. Nc3 {[%clk 0:03:00.4]} 7... Nb6 {[%clk 0:02:52.8]} 8. d4 {[%clk
0:02:58.9]} 8... Nc6 {[%clk 0:02:51.8]} 9. e3 {[%clk 0:02:54.9]} 9... Re8 {[%clk
0:02:50.6]} 10. a3 {[%clk 0:02:53.7]} 10... Rb8 {[%clk 0:02:47.5]} 11. b4 {[%clk
0:02:52.4]} 11... e5 {[%clk 0:02:45.8]} 12. dxe5 {[%clk 0:02:51.7]} 12... Nxe5
{[%clk 0:02:45.2]} 13. Nxe5 {[%clk 0:02:51.6]} 13... Bxe5 {[%clk 0:02:45.1]} 14.
Bb2 {[%clk 0:02:51.3]} 14... c6 {[%clk 0:02:43.8]} 15. Qxd8 {[%clk 0:02:42.7]}
15... Rxd8 {[%clk 0:02:44.7]} 16. Rfd1 {[%clk 0:02:38.9]} 16... Bg4 {[%clk
0:02:43.5]} 17. f3 {[%clk 0:02:33.1]} 17... Nc4 {[%clk 0:02:36.8]} 18. fxg4
{[%clk 0:02:19.4]} 18... Nxb2 {[%clk 0:02:32.2]} 19. Rxd8+ {[%clk 0:02:19]}
19... Rxd8 {[%clk 0:02:33.1]} 20. Ne4 {[%clk 0:02:18.7]} 20... Nc4 {[%clk
0:02:21.2]} 21. Re1 {[%clk 0:02:07.9]} 21... b6 {[%clk 0:02:19.2]} 22. a4 {[%clk
0:02:06.8]} 22... Rd3 {[%clk 0:02:17.4]} 23. Bf1 {[%clk 0:02:05.3]} 23... Rxe3
{[%clk 0:02:12.6]} 24. Rxe3 {[%clk 0:02:04.6]} 24... Nxe3 {[%clk 0:02:13.5]} 25.
b5 {[%clk 0:02:02.8]} 25... c5 {[%clk 0:02:06.1]} 26. Kf2 {[%clk 0:02:00.1]}
26... Nd1+ {[%clk 0:02:00.1]} 27. Ke1 {[%clk 0:01:55.4]} 27... Ne3 {[%clk
0:01:50.2]} 28. Be2 {[%clk 0:01:53.2]} 28... h6 {[%clk 0:01:35.8]} 29. Kd2
{[%clk 0:01:52.9]} 29... Nd5 {[%clk 0:01:27.2]} 30. Kd3 {[%clk 0:01:47.7]} 30...
Kg7 {[%clk 0:01:21.2]} 31. Kc4 {[%clk 0:01:47.6]} 31... Ne3+ {[%clk 0:01:18.3]}
32. Kd3 {[%clk 0:01:46.3]} 32... Nd5 {[%clk 0:01:07.6]} 33. Kc4 {[%clk
0:01:46.1]} 33... Nb4 {[%clk 0:00:57.7]} 34. a5 {[%clk 0:01:44.1]} 34... f5
{[%clk 0:00:52.4]} 35. gxf5 {[%clk 0:01:26.1]} 35... gxf5 {[%clk 0:00:53.3]} 36.
Nxc5 {[%clk 0:01:26.9]} 36... bxc5 {[%clk 0:00:48.9]} 37. Kxc5 {[%clk
0:01:27.8]} 37... Nc2 {[%clk 0:00:41.1]} 38. Bd3 {[%clk 0:01:09]} 38... Nd4
{[%clk 0:00:34.4]} 39. b6 {[%clk 0:01:09]} 39... axb6+ {[%clk 0:00:34.6]} 40.
Kxb6 {[%clk 0:01:09.4]} 40... Kf6 {[%clk 0:00:28.2]} 41. a6 {[%clk 0:01:08.1]}
41... Nf3 {[%clk 0:00:28.3]} 42. a7 {[%clk 0:00:59.9]} 42... Bd4+ {[%clk
0:00:28.4]} 43. Kb7 {[%clk 0:01:00.5]} 43... Bxa7 {[%clk 0:00:27.8]} 44. Kxa7
{[%clk 0:01:01.4]} 44... Nxh2 {[%clk 0:00:28.2]} 45. Kb6 {[%clk 0:01:01.5]}
45... Ke5 {[%clk 0:00:24.4]} 46. Kc5 {[%clk 0:01:00.8]} 46... Ng4 {[%clk
0:00:23.9]} 47. Kc4 {[%clk 0:00:58.6]} 47... Nf2 {[%clk 0:00:23.7]} 48. Bc2
{[%clk 0:00:56.7]} 48... Ne4 {[%clk 0:00:23.5]} 0-1

[Event "*** Titled Tuesday Blitz"]
[Site "Chess.com"]
[Date "2021.04.27"]
[Round "2"]
[White "MARVELandDCforLIFE"]
[Black "Gmedmundo"]
[Result "0-1"]
[WhiteElo "2222"]
[BlackElo "2443"]
[TimeControl "180+1"]
[EndTime "10:18:03 PDT"]
[Termination "Gmedmundo won by resignation"]

1. e4 {[%clk 0:03:00.9]} 1... c5 {[%clk 0:02:58.3]} 2. Nf3 {[%clk 0:03:00.5]}
2... d6 {[%clk 0:02:57.6]} 3. d4 {[%clk 0:03:00.7]} 3... cxd4 {[%clk 0:02:57.2]}
4. Nxd4 {[%clk 0:03:00.2]} 4... Nf6 {[%clk 0:02:57]} 5. Nc3 {[%clk 0:02:59.2]}
5... Nc6 {[%clk 0:02:56.3]} 6. Bc4 {[%clk 0:02:51.3]} 6... Bd7 {[%clk
0:02:53.8]} 7. Bb3 {[%clk 0:02:49]} 7... g6 {[%clk 0:02:52.3]} 8. f3 {[%clk
0:02:49]} 8... Nxd4 {[%clk 0:02:51.1]} 9. Qxd4 {[%clk 0:02:47.3]} 9... Bg7
{[%clk 0:02:50.8]} 10. Be3 {[%clk 0:02:46.6]} 10... O-O {[%clk 0:02:49.9]} 11.
O-O-O {[%clk 0:02:41.9]} 11... Ng4 {[%clk 0:02:45.6]} 12. Qd2 {[%clk 0:02:39]}
12... Nxe3 {[%clk 0:02:44]} 13. Qxe3 {[%clk 0:02:39.9]} 13... b5 {[%clk
0:02:39.6]} 14. Kb1 {[%clk 0:02:39.3]} 14... a5 {[%clk 0:02:37.9]} 15. a3 {[%clk
0:02:29.7]} 15... b4 {[%clk 0:02:36.8]} 16. axb4 {[%clk 0:02:21.4]} 16... axb4
{[%clk 0:02:35.6]} 17. Na2 {[%clk 0:02:21.7]} 17... Qa5 {[%clk 0:02:26.3]} 18.
Rd5 {[%clk 0:01:57.3]} 18... Qa6 {[%clk 0:02:18.1]} 19. Qd3 {[%clk 0:01:48.2]}
19... Qa7 {[%clk 0:02:13.9]} 20. h4 {[%clk 0:01:39.3]} 20... Be6 {[%clk
0:01:56.8]} 21. Rb5 {[%clk 0:01:35.9]} 21... Bxb3 {[%clk 0:01:48.2]} 22. Qxb3
{[%clk 0:01:36.8]} 22... Qa6 {[%clk 0:01:22.9]} 23. Rxb4 {[%clk 0:01:31.2]}
23... Ra7 {[%clk 0:01:21.6]} 24. Rb6 {[%clk 0:01:20.6]} 24... Qe2 {[%clk
0:01:13.6]} 25. g4 {[%clk 0:01:07.6]} 25... Qg2 {[%clk 0:00:54.2]} 26. Rc1
{[%clk 0:01:01.6]} 26... Bd4 {[%clk 0:00:47.6]} 27. Rb8 {[%clk 0:00:50.2]} 27...
Rxb8 {[%clk 0:00:44.5]} 28. Qxb8+ {[%clk 0:00:51.1]} 28... Kg7 {[%clk
0:00:44.2]} 29. c3 {[%clk 0:00:42.7]} 29... Bc5 {[%clk 0:00:43.4]} 30. Rc2
{[%clk 0:00:08.2]} 30... Qxf3 {[%clk 0:00:41.3]} 31. b4 {[%clk 0:00:08.7]} 31...
Qd1+ {[%clk 0:00:39]} 32. Kb2 {[%clk 0:00:08.8]} 32... Rxa2+ {[%clk 0:00:37.2]}
33. Kxa2 {[%clk 0:00:07.8]} 33... Qxc2+ {[%clk 0:00:36.5]} 34. Ka3 {[%clk
0:00:08.7]} 34... Qxc3+ {[%clk 0:00:36.1]} 35. Ka4 {[%clk 0:00:08.7]} 35...
Qxb4+ {[%clk 0:00:35.3]} 36. Qxb4 {[%clk 0:00:07.9]} 36... Bxb4 {[%clk
0:00:34.9]} 37. Kxb4 {[%clk 0:00:08.8]} 37... Kf6 {[%clk 0:00:34.7]} 38. Kc4
{[%clk 0:00:09.2]} 38... Ke5 {[%clk 0:00:34.7]} 39. Kd3 {[%clk 0:00:09.4]} 39...
Kf4 {[%clk 0:00:33.9]} 0-1

[Event "*** Titled Tuesday Blitz"]
[Site "Chess.com"]
[Date "2021.04.27"]
[Round "2"]
[White "mbojan"]
[Black "dosto07"]
[Result "1-0"]
[WhiteElo "2650"]
[BlackElo "2308"]
[TimeControl "180+1"]
[EndTime "10:18:04 PDT"]
[Termination "mbojan won by checkmate"]

1. g3 {[%clk 0:03:00.9]} 1... d5 {[%clk 0:02:59.5]} 2. Bg2 {[%clk 0:03:01.1]}
2... Nf6 {[%clk 0:02:59.9]} 3. d3 {[%clk 0:03:01.3]} 3... c6 {[%clk 0:03:00.2]}
4. Nd2 {[%clk 0:03:00.7]} 4... g6 {[%clk 0:02:54.3]} 5. e4 {[%clk 0:03:00.1]}
5... dxe4 {[%clk 0:02:48.5]} 6. dxe4 {[%clk 0:03:01]} 6... Bg7 {[%clk
0:02:48.2]} 7. Nh3 {[%clk 0:03:01]} 7... O-O {[%clk 0:02:42.3]} 8. O-O {[%clk
0:03:00.8]} 8... Bg4 {[%clk 0:02:26.7]} 9. f3 {[%clk 0:03:00.6]} 9... Bxh3
{[%clk 0:02:19.6]} 10. Bxh3 {[%clk 0:03:01.5]} 10... Qb6+ {[%clk 0:02:11.8]} 11.
Kh1 {[%clk 0:03:00.1]} 11... Nbd7 {[%clk 0:02:09.1]} 12. Qe2 {[%clk 0:02:53.9]}
12... Nc5 {[%clk 0:01:47.4]} 13. Nc4 {[%clk 0:02:53]} 13... Qa6 {[%clk
0:01:45.6]} 14. Re1 {[%clk 0:02:53.4]} 14... Rfd8 {[%clk 0:01:28.1]} 15. Bf1
{[%clk 0:02:46]} 15... Ncd7 {[%clk 0:01:19.4]} 16. Bf4 {[%clk 0:02:44.2]} 16...
b5 {[%clk 0:01:16]} 17. Nd2 {[%clk 0:02:13.7]} 17... Nh5 {[%clk 0:01:14.1]} 18.
e5 {[%clk 0:02:14]} 18... Nxf4 {[%clk 0:01:07.4]} 19. gxf4 {[%clk 0:02:14.9]}
19... Qa4 {[%clk 0:01:07.2]} 20. Ne4 {[%clk 0:02:14]} 20... Nb6 {[%clk
0:00:48.2]} 21. b3 {[%clk 0:02:10.6]} 21... Qa5 {[%clk 0:00:44.8]} 22. c4 {[%clk
0:01:54.6]} 22... bxc4 {[%clk 0:00:34.6]} 23. bxc4 {[%clk 0:01:55.5]} 23... Qa4
{[%clk 0:00:32.3]} 24. Rac1 {[%clk 0:01:49.4]} 24... Rd4 {[%clk 0:00:31.2]} 25.
Qf2 {[%clk 0:01:16.4]} 25... Rad8 {[%clk 0:00:27.2]} 26. Qg3 {[%clk 0:01:09.9]}
26... Nxc4 {[%clk 0:00:21.9]} 27. Bxc4 {[%clk 0:00:47]} 27... Rxc4 {[%clk
0:00:21.3]} 28. f5 {[%clk 0:00:47.6]} 28... Rxc1 {[%clk 0:00:19]} 29. Rxc1
{[%clk 0:00:46.4]} 29... Qa3 {[%clk 0:00:18.6]} 30. Rg1 {[%clk 0:00:43.8]} 30...
Rd3 {[%clk 0:00:15.6]} 31. e6 {[%clk 0:00:40.5]} 31... Rxf3 {[%clk 0:00:13.6]}
32. Qb8+ {[%clk 0:00:40.2]} 32... Bf8 {[%clk 0:00:12.7]} 33. exf7+ {[%clk
0:00:40.8]} 33... Kxf7 {[%clk 0:00:12.2]} 34. Ng5+ {[%clk 0:00:39.2]} 34... Kg7
{[%clk 0:00:11.6]} 35. Ne6+ {[%clk 0:00:39.6]} 35... Kh6 {[%clk 0:00:10]} 36.
Qxf8+ {[%clk 0:00:40.3]} 36... Kh5 {[%clk 0:00:10.2]} 37. Qg7 {[%clk 0:00:35.8]}
37... g5 {[%clk 0:00:01.8]} 38. Qxg5# {[%clk 0:00:35.3]} 1-0